{"text_format":"1","workbook":"xlsx","n_sheets":12,"sheets":["Test1","Test2","Test3","Test4","Test5","Раскрой (1)","Раскрой (2)","Раскрой (3)","Раскрой (4)","Раскрой (5)","Раскрой (6)","Раскрой (7)"],"not_rendered":{"charts":0,"images":0,"macros":1,"external_links":0,"defined_names":0,"comments":0,"pivot_tables":0},"unopened":[],"bounds":{"document_bytes":16777216,"sheet_cells":100000,"rows_first":2000,"rows_last":500,"rows_between":2000,"halvings":0,"cell_chars":16384,"cell_head_chars":4096},"cells_cut":0,"cells_raw":0,"read":"whole","date_system":"1900"}

{"sheet":"Test1","index":0,"n_rows":26,"n_cols":4,"rows_kept":26,"cut":false,"hidden":false,"merged":[]}
["Название","Ширина","Высота","Отход"]
["Контейнер",47,31,{"$f":"(B2*C2)-SUMPRODUCT(B5:B24,C5:C24,D5:D24)","v":8}]
[null,null,null,{"$f":"1-SUMPRODUCT(B5:B24,C5:C24,D5:D24)/(B2*C2)","v":5.4907343857241164E-3}]
["Название","Ширина","Высота","Кол-во"]
["Деталь 1",3,17,16]
["Деталь 2",5,13,5]
["Деталь 3",7,11,4]
[null,null,null,0]
[null,null,null,0]
[null,null,null,0]
[null,null,null,0]
[null,null,null,0]
[null,null,null,0]
[null,null,null,0]
[null,null,null,0]
[null,null,null,0]
[null,null,null,0]
[null,null,null,0]
[null,null,null,0]
[null,null,null,0]
[null,null,null,0]
[null,null,null,0]
[null,null,null,0]
[null,null,null,0]
[]
["Масштаб",10]

{"sheet":"Test2","index":1,"n_rows":26,"n_cols":4,"rows_kept":26,"cut":false,"hidden":false,"merged":[]}
["Название","Ширина","Высота","Отход"]
["Контейнер",79,57,{"$f":"(B2*C2)-SUMPRODUCT(B5:B24,C5:C24,D5:D24)","v":0}]
[null,null,null,{"$f":"1-SUMPRODUCT(B5:B24,C5:C24,D5:D24)/(B2*C2)","v":0}]
["Название","Ширина","Высота","Кол-во"]
["Деталь 1",3,17,20]
["Деталь 2",5,13,37]
["Деталь 3",7,11,14]
[null,null,null,0]
[null,null,null,0]
[null,null,null,0]
[null,null,null,0]
[null,null,null,0]
[null,null,null,0]
[null,null,null,0]
[null,null,null,0]
[null,null,null,0]
[null,null,null,0]
[null,null,null,0]
[null,null,null,0]
[null,null,null,0]
[null,null,null,0]
[null,null,null,0]
[null,null,null,0]
[null,null,null,0]
[]
["Масштаб",7.5]

{"sheet":"Test3","index":2,"n_rows":26,"n_cols":4,"rows_kept":26,"cut":false,"hidden":false,"merged":[]}
["Название","Ширина","Высота","Отход"]
["Контейнер",234,345,{"$f":"(B2*C2)-SUMPRODUCT(B5:B24,C5:C24,D5:D24)","v":0}]
[null,null,null,{"$f":"1-SUMPRODUCT(B5:B24,C5:C24,D5:D24)/(B2*C2)","v":0}]
["Название","Ширина","Высота","Кол-во"]
["Деталь 1",40,80,0]
["Деталь 2",41,71,8]
["Деталь 3",37,70,2]
["Деталь 4",39,80,7]
["Деталь 5",50,80,0]
["Деталь 6",40,70,1]
["Деталь 7",42,78,6]
["Деталь 8",39,84,1]
["Деталь 9",31,66,0]
["Деталь 10",35,67,2]
[null,null,null,0]
[null,null,null,0]
[null,null,null,0]
[null,null,null,0]
[null,null,null,0]
[null,null,null,0]
[null,null,null,0]
[null,null,null,0]
[null,null,null,0]
[null,null,null,0]
[]
["Масштаб",1]

{"sheet":"Test4","index":3,"n_rows":26,"n_cols":4,"rows_kept":26,"cut":false,"hidden":false,"merged":[]}
["Название","Ширина","Высота","Отход"]
["Контейнер",234,345,{"$f":"(B2*C2)-SUMPRODUCT(B5:B24,C5:C24,D5:D24)","v":522}]
[null,null,null,{"$f":"1-SUMPRODUCT(B5:B24,C5:C24,D5:D24)/(B2*C2)","v":6.4659977703456217E-3}]
["Название","Ширина","Высота","Кол-во"]
["Деталь 1",47,52,6]
["Деталь 2",33,74,2]
["Деталь 3",72,32,8]
["Деталь 4",34,38,9]
["Деталь 5",50,68,9]
[null,null,null,0]
[null,null,null,0]
[null,null,null,0]
[null,null,null,0]
[null,null,null,0]
[null,null,null,0]
[null,null,null,0]
[null,null,null,0]
[null,null,null,0]
[null,null,null,0]
[null,null,null,0]
[null,null,null,0]
[null,null,null,0]
[null,null,null,0]
[null,null,null,0]
[]
["Масштаб",1]

{"sheet":"Test5","index":4,"n_rows":26,"n_cols":4,"rows_kept":26,"cut":false,"hidden":false,"merged":[]}
["Название","Ширина","Высота","Отход"]
["Контейнер",321,210,{"$f":"(B2*C2)-SUMPRODUCT(B5:B24,C5:C24,D5:D24)","v":498}]
[null,null,null,{"$f":"1-SUMPRODUCT(B5:B24,C5:C24,D5:D24)/(B2*C2)","v":7.3876279483756635E-3}]
["Название","Ширина","Высота","Кол-во"]
["Деталь 1",47,52,14]
["Деталь 2",33,74,2]
["Деталь 3",72,32,0]
["Деталь 4",34,38,11]
["Деталь 5",50,68,4]
[null,null,null,0]
[null,null,null,0]
[null,null,null,0]
[null,null,null,0]
[null,null,null,0]
[null,null,null,0]
[null,null,null,0]
[null,null,null,0]
[null,null,null,0]
[null,null,null,0]
[null,null,null,0]
[null,null,null,0]
[null,null,null,0]
[null,null,null,0]
[null,null,null,0]
[]
["Масштаб",1]

{"sheet":"Раскрой (1)","index":5,"n_rows":26,"n_cols":4,"rows_kept":26,"cut":false,"hidden":false,"merged":[]}
["Название","Ширина","Высота","Отход"]
["Контейнер",150,150,{"$f":"(B2*C2)-SUMPRODUCT(B5:B24,C5:C24,D5:D24)","v":86}]
[null,null,null,{"$f":"1-SUMPRODUCT(B5:B24,C5:C24,D5:D24)/(B2*C2)","v":3.8222222222221713E-3}]
["Название","Ширина","Высота","Кол-во"]
["Деталь 1",11,37,12]
["Деталь 2",13,31,15]
["Деталь 3",17,29,10]
["Деталь 4",19,23,15]
[null,null,null,0]
[null,null,null,0]
[null,null,null,0]
[null,null,null,0]
[null,null,null,0]
[null,null,null,0]
[null,null,null,0]
[null,null,null,0]
[null,null,null,0]
[null,null,null,0]
[null,null,null,0]
[null,null,null,0]
[null,null,null,0]
[null,null,null,0]
[null,null,null,0]
[null,null,null,0]
[]
["Масштаб",3]

{"sheet":"Раскрой (2)","index":6,"n_rows":26,"n_cols":4,"rows_kept":26,"cut":false,"hidden":false,"merged":[]}
["Название","Ширина","Высота","Отход"]
["Контейнер",151,149,{"$f":"(B2*C2)-SUMPRODUCT(B5:B24,C5:C24,D5:D24)","v":63}]
[null,null,null,{"$f":"1-SUMPRODUCT(B5:B24,C5:C24,D5:D24)/(B2*C2)","v":2.8001244499755717E-3}]
["Название","Ширина","Высота","Кол-во"]
["Деталь 1",11,37,2]
["Деталь 2",13,31,39]
["Деталь 3",17,29,4]
["Деталь 4",19,23,9]
[null,null,null,0]
[null,null,null,0]
[null,null,null,0]
[null,null,null,0]
[null,null,null,0]
[null,null,null,0]
[null,null,null,0]
[null,null,null,0]
[null,null,null,0]
[null,null,null,0]
[null,null,null,0]
[null,null,null,0]
[null,null,null,0]
[null,null,null,0]
[null,null,null,0]
[null,null,null,0]
[]
["Масштаб",3]

{"sheet":"Раскрой (3)","index":7,"n_rows":26,"n_cols":4,"rows_kept":26,"cut":false,"hidden":false,"merged":[]}
["Название","Ширина","Высота","Отход"]
["Контейнер",152,148,{"$f":"(B2*C2)-SUMPRODUCT(B5:B24,C5:C24,D5:D24)","v":45}]
[null,null,null,{"$f":"1-SUMPRODUCT(B5:B24,C5:C24,D5:D24)/(B2*C2)","v":2.0003556187766502E-3}]
["Название","Ширина","Высота","Кол-во"]
["Деталь 1",11,37,12]
["Деталь 2",13,31,5]
["Деталь 3",17,29,28]
["Деталь 4",19,23,4]
[null,null,null,0]
[null,null,null,0]
[null,null,null,0]
[null,null,null,0]
[null,null,null,0]
[null,null,null,0]
[null,null,null,0]
[null,null,null,0]
[null,null,null,0]
[null,null,null,0]
[null,null,null,0]
[null,null,null,0]
[null,null,null,0]
[null,null,null,0]
[null,null,null,0]
[null,null,null,0]
[]
["Масштаб",3]

{"sheet":"Раскрой (4)","index":8,"n_rows":26,"n_cols":4,"rows_kept":26,"cut":false,"hidden":false,"merged":[]}
["Название","Ширина","Высота","Отход"]
["Контейнер",154,146,{"$f":"(B2*C2)-SUMPRODUCT(B5:B24,C5:C24,D5:D24)","v":86}]
[null,null,null,{"$f":"1-SUMPRODUCT(B5:B24,C5:C24,D5:D24)/(B2*C2)","v":3.8249421811065165E-3}]
["Название","Ширина","Высота","Кол-во"]
["Деталь 1",11,37,2]
["Деталь 2",13,31,21]
["Деталь 3",17,29,8]
["Деталь 4",19,23,21]
[null,null,null,0]
[null,null,null,0]
[null,null,null,0]
[null,null,null,0]
[null,null,null,0]
[null,null,null,0]
[null,null,null,0]
[null,null,null,0]
[null,null,null,0]
[null,null,null,0]
[null,null,null,0]
[null,null,null,0]
[null,null,null,0]
[null,null,null,0]
[null,null,null,0]
[null,null,null,0]
[]
["Масштаб",3]

{"sheet":"Раскрой (5)","index":9,"n_rows":26,"n_cols":4,"rows_kept":26,"cut":false,"hidden":false,"merged":[]}
["Название","Ширина","Высота","Отход"]
["Контейнер",150,150,{"$f":"(B2*C2)-SUMPRODUCT(B5:B24,C5:C24,D5:D24)","v":78}]
[null,null,null,{"$f":"1-SUMPRODUCT(B5:B24,C5:C24,D5:D24)/(B2*C2)","v":3.4666666666666179E-3}]
["Название","Ширина","Высота","Кол-во"]
["Деталь 1",11,29,10]
["Деталь 2",13,23,60]
["Деталь 3",17,19,4]
[null,null,null,0]
[null,null,null,0]
[null,null,null,0]
[null,null,null,0]
[null,null,null,0]
[null,null,null,0]
[null,null,null,0]
[null,null,null,0]
[null,null,null,0]
[null,null,null,0]
[null,null,null,0]
[null,null,null,0]
[null,null,null,0]
[null,null,null,0]
[null,null,null,0]
[null,null,null,0]
[null,null,null,0]
[]
["Масштаб",3]

{"sheet":"Раскрой (6)","index":10,"n_rows":26,"n_cols":4,"rows_kept":26,"cut":false,"hidden":false,"merged":[]}
["Название","Ширина","Высота","Отход"]
["Контейнер",151,149,{"$f":"(B2*C2)-SUMPRODUCT(B5:B24,C5:C24,D5:D24)","v":76}]
[null,null,null,{"$f":"1-SUMPRODUCT(B5:B24,C5:C24,D5:D24)/(B2*C2)","v":3.3779279079070301E-3}]
["Название","Ширина","Высота","Кол-во"]
["Деталь 1",11,29,7]
["Деталь 2",13,23,47]
["Деталь 3",17,19,19]
[null,null,null,0]
[null,null,null,0]
[null,null,null,0]
[null,null,null,0]
[null,null,null,0]
[null,null,null,0]
[null,null,null,0]
[null,null,null,0]
[null,null,null,0]
[null,null,null,0]
[null,null,null,0]
[null,null,null,0]
[null,null,null,0]
[null,null,null,0]
[null,null,null,0]
[null,null,null,0]
[null,null,null,0]
[]
["Масштаб",3]

{"sheet":"Раскрой (7)","index":11,"n_rows":26,"n_cols":4,"rows_kept":26,"cut":false,"hidden":false,"merged":[]}
["Название","Ширина","Высота","Отход"]
["Контейнер",154,146,{"$f":"(B2*C2)-SUMPRODUCT(B5:B24,C5:C24,D5:D24)","v":36}]
[null,null,null,{"$f":"1-SUMPRODUCT(B5:B24,C5:C24,D5:D24)/(B2*C2)","v":1.601138587439932E-3}]
["Название","Ширина","Высота","Кол-во"]
["Деталь 1",11,29,28]
["Деталь 2",13,23,29]
["Деталь 3",17,19,15]
[null,null,null,0]
[null,null,null,0]
[null,null,null,0]
[null,null,null,0]
[null,null,null,0]
[null,null,null,0]
[null,null,null,0]
[null,null,null,0]
[null,null,null,0]
[null,null,null,0]
[null,null,null,0]
[null,null,null,0]
[null,null,null,0]
[null,null,null,0]
[null,null,null,0]
[null,null,null,0]
[null,null,null,0]
[]
["Масштаб",3]